bitfinex/quotes_ETHUSD_20241019
["timestamp","ask_amount","ask_price","bid_price","bid_amount"]
[1729356316324,0.06572586,2642.2,2641.8,0.15061859]
[1729356316543,0.06572586,2642.2,2641.7,0.79442595]
[1729356316544,0.7699,2642.1,2641.7,0.79442595]
[1729356316715,0.7699,2642.1,2641.8,0.15063726]
[1729356316899,0.7699,2642.1,2641.7,0.15064106]
[1729356317100,0.7699,2642.1,2641.8,0.15064106]
[1729356317340,0.7699,2642.1,2641.7,0.94506701]
[1729356317538,0.7699,2642.1,2641.8,0.15064831]
[1729356317738,0.7699,2642.1,2641.7,0.79442595]
[1729356317905,0.7699,2642.1,2641.8,0.15064896]
[1729356318239,0.7699,2642.1,2641.7,0.79442595]
[1729356318429,0.7699,2642.1,2641.8,0.15066534]
[1729356318740,0.7699,2642.1,2641.9,0.15066247]
[1729356318953,0.7699,2642.1,2641.8,0.15066247]
[1729356319245,0.7699,2642.1,2641.7,0.79442595]
[1729356319443,0.7699,2642.1,2641.8,0.15067982]
[1729356319601,0.7699,2642.1,2641.7,0.79442595]
[1729356319802,0.7699,2642.1,2641.8,0.15068784]
[1729356320001,0.7699,2642.1,2641.9,0.15068228]
[1729356320303,0.7699,2642.1,2641.8,0.15068228]
[1729356320618,0.7699,2642.1,2641.7,0.79442595]
[1729356320815,0.7699,2642.1,2641.8,0.15070994]
[1729356321144,0.7699,2642.1,2641.6,0.79442595]
[1729356321345,0.7699,2642.1,2641.7,0.15072668]
[1729356321548,0.7699,2642.1,2641.8,0.15072668]
[1729356321759,0.7699,2642.1,2641.9,0.15072668]
[1729356321915,0.7699,2642.1,2641.7,0.79442595]
[1729356322112,0.7699,2642.1,2641.8,0.15072808]
[1729356322311,0.7699,2642.1,2641.9,0.15074872]
[1729356322611,0.7699,2642.1,2641.7,0.79442595]
[1729356322927,0.7699,2642.1,2641.8,0.15075105]
[1729356323111,0.7699,2642.1,2641.7,0.79442595]
[1729356323312,0.06572586,2642.0,2641.8,0.15075162]
[1729356323623,0.7544,2641.9,2641.5,0.79442595]
[1729356323832,0.7544,2641.9,2641.6,0.15078565]
[1729356324144,0.7544,2641.9,2641.7,0.15078565]
[1729356324355,0.7544,2641.9,2641.8,0.15078565]
[1729356325415,0.7544,2641.9,2641.6,0.79442595]
[1729356325716,0.7544,2641.9,2641.7,0.15081712]
[1729356325937,0.7544,2641.9,2641.8,0.15081712]
[1729356326117,0.7544,2641.9,2641.8,0.15081739]
[1729356326313,0.7544,2641.9,2641.6,0.79442595]
[1729356326518,0.7544,2641.9,2641.7,0.15080695]
[1729356326752,0.7544,2641.7,2641.5,0.79442595]
[1729356326967,0.7544,2641.7,2641.6,0.15081371]
[1729356330151,0.7544,2641.7,2641.5,0.79442595]
[1729356330511,0.7544,2641.7,2641.6,0.15078474]
[1729356330809,0.7544,2641.7,2641.6,0.15078463]
[1729356331095,0.7544,2641.7,2641.6,0.15078487]
[1729356331266,0.7544,2641.7,2641.6,0.94521082]
[1729356331453,0.7544,2641.7,2641.6,0.15078487]
[1729356331656,0.7544,2641.7,2641.6,0.94521082]
[1729356333890,0.7544,2641.7,2641.6,0.79442595]
[1729356334089,0.7544,2641.7,2641.6,0.94519051]
[1729356334468,0.06572586,2642.0,2641.6,0.94519051]
[1729356334683,0.7544,2642.0,2641.7,0.15076456]
[1729356334886,0.06572586,2641.9,2641.7,0.79280181]
[1729356335061,0.06572586,2641.9,2641.6,0.79280181]
[1729356335395,0.06572586,2641.9,2641.7,0.9435639]
[1729356335695,0.06572586,2641.9,2641.7,0.79280181]
[1729356337685,0.7544,2641.8,2641.6,0.79280181]
[1729356338218,0.06572586,2641.7,2641.5,0.79280181]
[1729356338418,0.06572586,2641.7,2641.6,0.94356638]
[1729356341402,0.06572586,2641.7,2641.6,0.94353341]
[1729356341728,0.06572586,2641.7,2641.6,0.94353018]
[1729356341898,0.06572586,2641.7,2641.6,0.79280181]
[1729356343628,0.06572586,2641.7,2641.6,0.94359164]
[1729356345957,0.06572586,2641.7,2641.6,0.15078983]
[1729356346817,0.06572586,2641.7,2641.6,0.94359164]
[1729356347628,0.7544,2641.8,2641.6,0.94415861]
[1729356347957,0.7544,2641.8,2641.7,0.15078983]
[1729356348252,0.7544,2641.8,2641.7,0.94415861]
[1729356348454,0.7544,2641.8,2641.7,0.15078983]
[1729356348823,0.7544,2641.8,2641.7,0.1508899]
[1729356349953,0.87662586,2642.0,2641.7,0.94425868]
[1729356350124,0.87662586,2642.0,2641.8,0.1508899]
[1729356350326,0.87662586,2642.0,2641.7,0.79336878]
[1729356350527,0.87662586,2642.0,2641.8,0.15090386]
[1729356350758,0.87662586,2642.0,2641.7,0.79336878]
[1729356350920,0.06572586,2641.9,2641.8,0.1509073]
[1729356353073,0.06572586,2641.9,2641.7,0.79336878]
[1729356353372,0.06572586,2641.9,2641.8,0.15093845]
[1729356353578,0.8109,2642.0,2641.8,0.15093845]
[1729356353749,0.06572586,2642.2,2641.8,0.15093845]
[1729356353750,0.87662586,2642.2,2641.9,0.15094521]
[1729356354082,0.06572586,2642.1,2642.0,0.15094521]
[1729356356287,0.06572586,2642.1,2641.8,0.79336878]
[1729356356787,0.06572586,2642.1,2641.9,0.15091462]
[1729356356987,0.06572586,2642.1,2641.8,0.79336878]
[1729356357161,0.06572586,2642.1,2641.7,0.79336878]
[1729356357364,0.06572586,2642.1,2641.8,0.15091297]
[1729356357565,0.06572586,2642.1,2641.7,0.79336878]
[1729356357789,0.06572586,2642.1,2641.8,0.15091299]
[1729356358097,0.06572586,2642.1,2641.9,0.15091299]
[1729356358248,0.06572586,2642.1,2641.8,0.79336878]
[1729356358453,0.06572586,2642.1,2641.9,0.15090493]
[1729356358794,0.06572586,2642.1,2641.8,0.79336878]
[1729356358991,0.06572586,2642.1,2641.9,0.15090794]
[1729356359226,0.06572586,2642.1,2641.8,0.79336878]
[1729356359720,0.06572586,2642.1,2641.9,0.15090615]
[1729356359919,0.06572586,2642.1,2641.8,0.79336878]
[1729356360085,0.06572586,2642.1,2641.9,0.1509046]
[1729356360286,0.06572586,2642.1,2641.8,0.79336878]
[1729356360622,0.06572586,2642.1,2641.9,0.15090412]
[1729356360820,0.06572586,2642.1,2641.8,0.79336878]
[1729356361027,0.06572586,2642.1,2641.9,0.15090238]
[1729356361212,0.06572586,2642.1,2641.8,0.79336878]
[1729356361383,0.06572586,2642.1,2641.9,0.15089935]
[1729356361690,0.06572586,2642.1,2641.9,0.79336878]
[1729356363290,0.06572586,2642.1,2642.0,0.79336878]
[1729356363490,0.87662586,2642.2,2642.0,0.79336878]
[1729356364609,0.8109,2642.2,2642.0,0.79336878]
[1729356365016,0.06572586,2642.1,2641.9,0.79336878]
[1729356365627,0.8198,2642.0,2641.9,0.79336878]
[1729356365996,0.8198,2642.0,2641.8,0.79336878]
[1729356366202,0.8198,2642.0,2641.9,0.79336878]
[1729356366399,0.8198,2642.0,2641.8,0.79336878]
[1729356366690,0.06572586,2641.9,2641.8,0.79336878]
[1729356366987,0.06572586,2641.9,2641.8,0.15088299]
[1729356368084,0.8198,2642.0,2641.8,0.15088299]
[1729356368288,0.8198,2642.0,2641.9,0.79416668]
[1729356370769,0.8198,2642.0,2641.8,0.79416668]
[1729356370953,0.06572586,2641.9,2641.8,0.79416668]
[1729356371153,0.06572586,2641.9,2641.8,0.94506439]
[1729356372049,0.8198,2642.0,2641.8,0.15089771]
[1729356372276,0.8198,2642.0,2641.9,0.7942171]
[1729356372477,0.8198,2642.0,2641.8,0.7942171]
[1729356372680,0.8198,2642.0,2641.7,1.18551116]
[1729356372681,0.8198,2642.0,2641.9,0.7942171]
[1729356374299,0.8198,2642.0,2641.9,0.94513936]
[1729356374798,0.8198,2642.0,2641.9,0.7942171]
[1729356375604,0.8198,2642.0,2641.9,0.94515061]
[1729356378108,1.29180375,2642.0,2641.9,0.15095305]
[1729356378312,1.29180375,2642.0,2641.9,0.94517662]
[1729356379815,0.8198,2642.0,2641.9,0.94517662]
[1729356381116,0.8198,2642.0,2641.9,0.7942171]
[1729356381274,0.8198,2642.0,2641.9,0.94518599]
[1729356383018,0.8198,2642.0,2641.9,0.94519778]
[1729356384880,0.8198,2642.0,2641.9,0.7942171]
[1729356385223,0.8198,2642.0,2641.9,0.94520881]
[1729356385935,0.8198,2642.0,2641.9,0.15099171]
[1729356386134,0.8198,2642.0,2641.9,0.94520881]
[1729356388651,0.8198,2642.0,2641.9,0.7942171]
[1729356388652,1.24897759,2642.0,2641.9,0.7942171]
[1729356388858,1.24897759,2642.0,2641.8,0.7942171]
[1729356389005,0.06572586,2641.9,2641.8,0.7942171]
[1729356389207,0.06572586,2641.9,2641.8,0.94522329]
[1729356391861,0.06572586,2642.2,2641.8,0.30380619]
[1729356392010,3.40574,2642.6,2641.8,0.30380619]
[1729356392011,0.85702586,2642.6,2642.1,0.1528]
[1729356392209,0.06572586,2642.6,2642.2,0.79441227]
[1729356392558,0.7913,2642.8,2642.1,0.1528]
[1729356392559,0.06572586,2642.7,2642.3,0.79441227]
[1729356392973,0.06572586,2642.7,2642.4,0.1528]
[1729356393152,0.06572586,2642.7,2642.4,0.94721227]
[1729356393460,0.7913,2643.0,2642.4,0.94721227]
[1729356393461,0.06572586,2642.9,2642.4,0.94721227]
[1729356393769,0.49193845,2642.9,2642.4,0.94721227]
[1729356394354,0.49193845,2642.9,2642.4,0.1528]
[1729356396329,0.06572586,2642.9,2642.4,0.1528]
[1729356396759,0.06572586,2643.1,2642.4,0.1528]
[1729356396969,0.06572586,2643.1,2642.6,0.1528]
[1729356397472,0.06572586,2643.3,2642.6,0.1528]
[1729356397637,0.54455754,2643.3,2642.6,0.1528]
[1729356398452,0.06572586,2643.3,2642.7,0.07567849]
[1729356398773,0.59228682,2643.5,2642.6,0.1528]
[1729356398774,0.65801268,2643.5,2642.8,0.1528]
[1729356399832,0.06572586,2643.4,2642.8,0.1528]
[1729356404641,0.59228682,2643.5,2642.8,0.1528]
[1729356405460,0.06572586,2643.6,2642.8,0.1528]
[1729356406559,0.06572586,2643.7,2642.8,0.1528]
[1729356409284,0.7941,2643.6,2642.8,0.1528]
[1729356409573,0.06572586,2643.5,2642.8,0.1528]
[1729356410279,0.54737359,2643.7,2642.8,0.1528]
[1729356412847,0.06572586,2643.6,2642.8,0.1528]
[1729356413049,0.8696569,2643.6,2642.8,0.1528]
[1729356420216,4.2741769,2643.6,2642.8,0.1528]
[1729356420385,1.6584569,2643.6,2642.8,0.1528]
[1729356423329,3.40468,2643.5,2642.8,0.1528]
[1729356423615,0.06572586,2643.4,2642.8,0.1528]
[1729356424114,0.06572586,2643.7,2642.8,0.1528]
[1729356424623,0.06572586,2643.7,2642.4,0.79441227]
[1729356424624,0.06572586,2643.7,2642.9,0.15074161]
[1729356424910,0.06572586,2643.7,2643.1,0.1528]
[1729356425918,0.06572586,2643.9,2643.2,0.1507796]
[1729356426077,1.22364645,2643.9,2643.3,0.1528]
[1729356427040,3.40419,2643.8,2643.3,0.1528]
[1729356427355,3.40445,2643.6,2642.9,0.1528]
[1729356427649,0.06572586,2643.5,2642.9,0.1528]
[1729356428613,0.7996,2643.7,2642.9,0.1528]
[1729356428614,0.06572586,2643.6,2642.9,0.1528]
[1729356428860,0.83311545,2643.6,2642.9,0.1528]
[1729356429344,0.83311545,2643.6,2643.0,0.15084177]
[1729356429654,0.83311545,2643.6,2642.9,0.1528]
[1729356431528,0.83311545,2643.6,2643.0,0.15085274]
[1729356431718,0.83311545,2643.6,2642.9,0.1528]
[1729356431919,0.83311545,2643.6,2643.0,0.15085196]
[1729356432156,0.83311545,2643.6,2642.9,0.1528]
[1729356432352,0.83311545,2643.6,2643.0,0.15085435]
[1729356432569,0.83311545,2643.6,2642.9,0.1528]
[1729356436791,0.83311545,2643.6,2643.0,0.1508717]
[1729356436981,0.83311545,2643.6,2642.9,0.1528]
[1729356437838,0.83311545,2643.6,2643.1,0.1528]
[1729356438444,0.06572586,2643.6,2643.1,0.1528]
[1729356440353,4.26979586,2643.6,2643.1,0.1528]
[1729356440676,0.86532586,2643.6,2643.1,0.1528]
[1729356443213,0.06572586,2643.6,2643.1,0.1528]
[1729356444191,0.06572586,2643.8,2643.1,0.1528]
[1729356444385,0.41270645,2643.8,2643.1,0.1528]
[1729356444834,3.81690645,2643.8,2643.2,0.1528]
[1729356446909,0.41270645,2643.8,2643.2,0.1528]
[1729356447138,3.81693645,2643.8,2643.2,0.1528]
[1729356447939,0.41270645,2643.8,2643.2,0.1528]
[1729356449029,3.81690645,2643.8,2643.2,0.1528]
[1729356450445,0.41270645,2643.8,2643.2,0.1528]
[1729356451903,0.06572586,2643.8,2643.2,0.1528]
[1729356452103,0.06572586,2644.0,2643.3,0.1528]
[1729356452303,0.06572586,2644.0,2643.4,0.1528]
[1729356455418,3.46965586,2644.0,2643.4,0.1528]
[1729356456046,0.06572586,2644.0,2643.4,0.1528]
[1729356456353,3.40384,2644.1,2643.4,0.1528]
[1729356456536,0.06572586,2644.0,2643.4,0.1528]
[1729356461200,0.06572586,2643.9,2643.4,0.1528]
[1729356461344,0.06572586,2644.2,2643.4,0.1528]
[1729356461892,0.75300645,2644.2,2643.4,0.1528]
[1729356462044,0.06572586,2644.2,2643.4,0.1528]
[1729356462244,0.06572586,2644.2,2643.4,0.79441227]
[1729356462481,0.06572586,2644.3,2643.5,0.1528]
[1729356462685,0.06572586,2644.3,2643.6,0.1528]
[1729356463469,3.46929586,2644.3,2643.6,0.1528]
[1729356463677,4.96484645,2644.3,2643.6,0.1528]
[1729356464873,0.768,2644.2,2643.6,0.1528]
[1729356465045,3.46953586,2644.1,2643.6,0.1528]
[1729356467883,0.06572586,2644.1,2643.6,0.1528]
[1729356468295,3.46952586,2644.1,2643.6,0.1528]
[1729356468598,0.42375259,2644.0,2643.6,0.1528]
[1729356468886,0.06572586,2643.9,2643.6,0.1528]
[1729356469761,0.06572586,2644.0,2643.6,0.1528]
[1729356470967,0.06572586,2644.1,2643.6,0.1528]
[1729356471454,3.40355,2644.3,2643.6,0.1528]
[1729356471658,0.06572586,2644.2,2643.6,0.1528]
[1729356473879,0.06572586,2644.1,2643.6,0.1528]
[1729356474085,0.06572586,2644.3,2643.6,0.1528]
[1729356477894,0.06572586,2644.4,2643.6,0.1528]
[1729356478202,1.56077645,2644.4,2643.6,0.1528]
[1729356479194,0.06572586,2644.4,2643.6,0.1528]
[1729356482360,0.06572586,2644.5,2643.6,0.1528]
[1729356484515,3.46901586,2644.5,2643.6,0.1528]
[1729356488123,4.25391586,2644.5,2643.6,0.1528]
[1729356491314,3.40343,2644.4,2643.6,0.1528]
[1729356491509,0.06572586,2644.3,2643.6,0.1528]
[1729356492582,0.06572586,2644.4,2643.6,0.1528]
[1729356499266,0.06572586,2644.6,2643.8,0.1528]
[1729356500518,11.17000905,2644.8,2643.8,0.1528]
[1729356500519,0.06572586,2644.7,2643.8,0.1528]
[1729356500718,0.06572586,2644.7,2643.9,0.1528]
[1729356501728,3.46877586,2644.7,2643.9,0.1528]
[1729356502017,3.46877586,2644.7,2643.9,0.94721227]
[1729356502140,3.46877586,2644.7,2644.0,0.30362713]
[1729356502335,3.46877586,2644.7,2644.0,0.1528]
[1729356502536,0.06572586,2644.7,2644.0,0.1528]
[1729356502955,0.06572586,2644.7,2644.1,0.1528]
[1729356503462,0.48700394,2644.7,2644.1,0.1528]
[1729356503663,3.89003394,2644.7,2644.1,0.1528]
[1729356504426,0.48700394,2644.7,2644.1,0.1528]
[1729356504874,0.06572586,2644.7,2644.1,0.1528]
[1729356505256,0.06572586,2644.7,2644.2,0.1528]
[1729356505442,0.06572586,2644.9,2644.2,0.1528]
[1729356505865,0.06572586,2644.9,2644.3,0.1528]
[1729356506172,0.06572586,2644.9,2644.4,0.1528]
[1729356506644,3.40252,2645.1,2644.4,0.1528]
[1729356506849,0.06572586,2645.0,2644.4,0.1528]
[1729356512376,4.80765951,2645.3,2644.4,0.1528]
[1729356512377,3.46812586,2645.2,2644.4,0.1528]
[1729356513178,0.06572586,2645.2,2644.4,0.1528]
[1729356513538,3.46813586,2645.2,2644.4,0.1528]
[1729356513738,0.82757954,2645.1,2644.4,0.1528]
[1729356513981,0.06572586,2645.0,2644.4,0.1528]
[1729356515650,0.06572586,2645.1,2644.4,0.1528]
[1729356516664,0.06572586,2645.2,2644.4,0.1528]
[1729356516868,0.06572586,2645.2,2644.5,0.1528]
[1729356520389,3.99398951,2645.3,2644.5,0.1528]
[1729356520390,3.40279,2644.9,2644.5,0.1528]
[1729356520539,3.40315,2644.7,2644.3,0.1528]
[1729356520745,0.8136,2645.0,2643.8,0.1528]
[1729356520746,6.80667,2644.5,2643.8,0.1528]
[1729356520950,0.06572586,2644.4,2643.8,0.1528]
[1729356522187,0.06572586,2644.5,2643.8,0.1528]
[1729356523179,3.46901586,2644.5,2643.8,0.1528]
[1729356524299,3.40362,2644.3,2643.8,0.1528]
[1729356524480,0.06572586,2644.2,2643.8,0.1528]
[1729356525293,0.06572586,2644.2,2643.5,0.1528]
[1729356525294,0.8314,2644.1,2643.5,0.1528]
[1729356525496,0.06572586,2644.0,2643.5,0.1528]
[1729356525864,3.40421,2643.8,2643.5,0.1528]
[1729356526093,0.06572586,2643.7,2643.1,0.1528]
[1729356526412,3.47005586,2643.7,2643.1,0.1528]
[1729356527013,0.06572586,2643.7,2643.1,0.1528]
[1729356535617,0.89712586,2643.7,2643.1,0.1528]
[1729356539496,3.40445,2643.6,2642.7,0.1528]
[1729356539693,0.8314,2643.4,2642.7,0.1528]
[1729356539896,0.06572586,2643.3,2642.7,0.1528]
[1729356540694,3.47057586,2643.3,2642.7,0.1528]
[1729356540901,0.8314,2643.2,2642.3,0.1528]
[1729356541215,0.06572586,2643.1,2642.3,0.43004576]
[1729356543528,0.06572586,2643.1,2642.3,0.1528]
[1729356551635,0.06572586,2643.1,2642.3,0.30300974]
[1729356552338,0.06572586,2643.1,2642.4,0.15020974]
[1729356552539,0.06572586,2643.1,2642.3,0.30300974]
[1729356552750,0.7641,2643.0,2642.3,0.30300974]
[1729356552928,0.06572586,2642.9,2642.3,0.1528]
[1729356553105,0.06572586,2642.9,2642.3,0.30321334]
[1729356553452,0.06572586,2642.9,2642.4,0.15041334]
[1729356554332,0.06572586,2642.9,2642.5,0.15041334]
[1729356554516,0.06572586,2642.9,2642.4,0.15041334]
[1729356554720,0.06572586,2642.9,2642.5,0.15041334]
[1729356554908,0.06572586,2642.9,2642.4,0.15041334]
[1729356555109,0.06572586,2642.9,2642.5,0.15041334]
[1729356555305,0.06572586,2642.9,2642.3,0.1528]
[1729356555544,0.06572586,2642.9,2642.4,0.15059542]
[1729356555847,0.06572586,2642.9,2642.5,0.15059542]
[1729356556006,0.06572586,2642.9,2642.3,0.1528]
[1729356556210,0.06572586,2642.9,2642.4,0.15059505]
[1729356556411,0.06572586,2642.9,2642.5,0.15059505]
[1729356556728,0.06572586,2642.9,2642.6,0.15059505]
[1729356556906,0.06572586,2642.9,2642.3,0.1528]
[1729356556907,0.06572586,2642.9,2642.4,0.15059505]
[1729356557107,0.06572586,2642.9,2642.3,0.1528]
[1729356557108,0.06572586,2642.9,2642.5,0.15059505]
[1729356557319,0.06572586,2642.9,2642.6,0.15059505]
[1729356557514,0.06572586,2642.9,2642.3,0.1528]
[1729356557751,0.06572586,2642.9,2642.4,0.15062224]
[1729356557951,0.06572586,2642.9,2642.5,0.15062224]
[1729356558116,0.06572586,2642.9,2642.6,0.15062224]
[1729356558334,0.7641,2643.0,2642.3,0.1528]
[1729356558542,0.7641,2643.0,2642.4,0.15063754]
[1729356558747,0.7641,2643.0,2642.5,0.15063754]
[1729356558954,0.7641,2643.0,2642.6,0.15063754]
[1729356559125,0.7641,2643.0,2642.3,0.1528]
[1729356559326,0.7641,2643.0,2642.4,0.15063658]
[1729356559623,0.7641,2643.0,2642.5,0.15063658]
[1729356559845,0.7641,2643.0,2642.6,0.15063658]
[1729356560158,0.7641,2643.0,2642.3,0.1528]
[1729356560370,0.7641,2643.0,2642.4,0.1506511]
[1729356560663,0.7641,2643.0,2642.5,0.15066733]
[1729356560963,0.06572586,2642.9,2642.6,0.15066733]
[1729356561164,0.06572586,2642.9,2642.3,0.1528]
[1729356561325,0.06572586,2642.9,2642.4,0.15069329]
[1729356561521,0.06572586,2642.9,2642.3,0.1528]
[1729356561522,0.06572586,2642.9,2642.5,0.15069329]
[1729356561725,0.06572586,2642.9,2642.6,0.15069329]
[1729356561963,0.06572586,2642.9,2642.3,0.1528]
[1729356562164,0.06572586,2642.9,2642.4,0.15069569]
[1729356562326,0.06572586,2642.9,2642.5,0.15069569]
[1729356562529,0.06572586,2642.9,2642.6,0.15069569]
[1729356562728,0.06572586,2642.9,2642.3,0.1528]
[1729356562929,0.06572586,2642.9,2642.4,0.1507064]
[1729356563164,0.06572586,2642.9,2642.5,0.1507064]
[1729356563367,0.06572586,2642.9,2642.6,0.1507064]
[1729356563567,0.06572586,2642.9,2642.7,0.1507064]
[1729356563766,0.06572586,2642.9,2642.3,0.1528]
[1729356563965,0.06572586,2642.9,2642.4,0.15072009]
[1729356564173,0.06572586,2642.9,2642.5,0.15072009]
[1729356564475,0.06572586,2642.9,2642.3,1.22445803]
[1729356564476,0.06572586,2642.9,2642.6,0.15072009]
[1729356564670,0.06572586,2642.9,2642.7,0.15072009]
[1729356564965,0.06572586,2642.9,2642.3,0.43004576]
[1729356565203,0.06572586,2642.9,2642.4,0.15074215]
[1729356565471,0.06572586,2642.9,2642.5,0.15074215]
[1729356565626,0.06572586,2642.9,2642.6,0.15074215]
[1729356565830,0.06572586,2642.9,2642.7,0.15074215]
[1729356566062,0.06572586,2642.9,2642.4,0.32004456]
[1729356566263,0.06572586,2642.9,2642.5,0.15076727]
[1729356566571,0.06572586,2642.9,2642.4,1.11445683]
[1729356566572,0.06572586,2642.9,2642.6,0.15076727]
[1729356566870,0.06572586,2642.9,2642.7,0.15076727]
[1729356567034,0.06572586,2642.9,2642.4,1.11445683]
[1729356567235,0.06572586,2642.9,2642.5,0.42379518]
[1729356567468,0.06572586,2642.9,2642.6,0.1507938]
[1729356567672,0.06572586,2642.9,2642.7,0.1507938]
[1729356567964,0.06572586,2642.9,2642.5,1.06741365]
[1729356568167,0.06572586,2642.9,2642.6,0.15082704]
[1729356568483,0.06572586,2642.9,2642.5,1.06741365]
[1729356568484,0.06572586,2642.9,2642.7,0.15082704]
[1729356568764,0.83422586,2642.9,2642.8,0.15082704]
[1729356568966,0.83422586,2642.9,2642.4,1.18551116]
[1729356568967,0.7685,2642.9,2642.4,0.79441227]
[1729356569167,0.83422586,2642.8,2642.5,0.15088903]
[1729356569329,0.83422586,2642.8,2642.4,0.79441227]
[1729356569330,0.83422586,2642.8,2642.6,0.15088903]
[1729356569530,0.83422586,2642.8,2642.7,0.15095763]
[1729356569946,0.83422586,2642.8,2642.4,0.79441227]
[1729356570145,0.83422586,2642.8,2642.5,0.15096206]
[1729356570368,0.7685,2642.7,2642.6,0.15096206]
[1729356573791,0.7685,2642.7,2642.4,0.79441227]
[1729356574089,0.06572586,2642.6,2642.5,0.15091047]
[1729356574392,0.7685,2642.6,2642.3,0.79441227]
[1729356574551,0.06572586,2642.5,2642.4,0.1508882]
[1729356574754,0.7685,2642.4,2642.2,0.79441227]
[1729356574993,0.06572586,2642.3,2642.2,0.79441227]
[1729356575149,0.06572586,2642.3,2642.2,0.9453035]
[1729356575584,0.06572586,2642.3,2642.2,0.15089123]
[1729356575887,0.06572586,2642.3,2642.2,0.9453035]
[1729356576264,0.06572586,2642.3,2642.2,0.94524878]
[1729356576591,0.06572586,2642.3,2642.2,0.15083651]
[1729356577192,0.06572586,2642.3,2642.2,0.94524878]
[1729356577598,0.06572586,2642.3,2642.2,0.15083651]
[1729356577962,0.06572586,2642.3,2642.2,0.94524878]
[1729356578669,0.06572586,2642.3,2642.2,0.15083651]
[1729356579108,0.06572586,2642.3,2642.2,0.94524878]
[1729356580597,0.06572586,2642.3,2642.1,0.79441227]
[1729356581012,0.06572586,2642.3,2642.2,0.15070288]
[1729356581214,0.06572586,2642.3,2642.2,0.94511515]
[1729356581513,0.06572586,2642.3,2642.2,0.79441227]
[1729356581684,0.06572586,2642.3,2642.1,0.79441227]
[1729356582070,0.06572586,2642.3,2642.2,0.79441227]
[1729356582271,0.06572586,2642.3,2642.2,0.94510087]
[1729356582515,0.06572586,2642.3,2642.2,0.79441227]
[1729356582876,0.06572586,2642.3,2642.2,0.94509118]
[1729356583208,0.83422586,2642.4,2642.2,0.94509118]
[1729356583380,0.83422586,2642.4,2642.2,0.79441227]
[1729356584315,0.7685,2642.4,2642.2,0.79441227]
[1729356584801,0.06572586,2642.3,2642.2,0.79441227]
[1729356585668,0.06572586,2642.3,2642.2,0.94507405]
[1729356585923,0.06572586,2642.3,2642.2,0.79441227]
[1729356586782,0.06572586,2642.3,2642.2,0.94507196]
[1729356587121,0.06572586,2642.3,2642.2,0.79441227]
[1729356587468,0.06572586,2642.3,2642.1,0.79441227]
[1729356587673,0.06572586,2642.3,2642.2,0.79441227]
[1729356589070,0.06572586,2642.3,2642.1,0.94507703]
[1729356589274,0.06572586,2642.3,2642.0,1.18551116]
[1729356589275,0.83422586,2642.4,2642.2,0.79441227]
[1729356590512,0.7685,2642.4,2642.2,0.79441227]
[1729356590917,0.06572586,2642.3,2642.1,0.79441227]
[1729356591092,0.7685,2642.4,2642.2,0.79441227]
[1729356591288,0.7685,2642.4,2642.1,0.94508553]
[1729356591494,0.7685,2642.4,2642.1,0.79441227]
[1729356591696,0.06572586,2642.3,2642.1,0.79441227]
[1729356592933,0.06572586,2642.3,2642.2,0.79441227]
[1729356593134,0.06572586,2642.3,2642.1,0.94509698]
[1729356593334,0.06572586,2642.3,2642.2,0.79441227]
[1729356593842,0.83422586,2642.4,2642.1,0.79441227]
[1729356594935,0.83422586,2642.4,2642.2,0.79441227]
[1729356595144,0.7685,2642.4,2642.2,0.79441227]
[1729356595332,0.7685,2642.4,2642.1,0.79441227]
[1729356595653,0.7685,2642.4,2642.2,0.94515303]
[1729356595855,0.7685,2642.4,2642.2,0.79441227]
[1729356596458,0.7685,2642.4,2642.1,0.79441227]
[1729356596660,0.7685,2642.4,2642.2,0.9451764]
[1729356596861,0.7685,2642.4,2642.2,0.79441227]
[1729356598490,0.06572586,2642.3,2642.2,0.79441227]
[1729356598790,0.83422586,2642.4,2642.2,0.9452392]
[1729356598991,0.83422586,2642.4,2642.2,0.79441227]
[1729356599489,0.83422586,2642.4,2642.3,0.15084595]
[1729356599721,0.7685,2642.4,2642.3,0.15084595]
[1729356600694,0.7685,2642.4,2642.2,0.79441227]
[1729356600983,0.7685,2642.4,2642.3,0.1508651]
[1729356607899,0.7685,2642.4,2642.3,0.15098806]
[1729356608490,0.7685,2642.4,2642.3,0.94540033]
[1729356608685,0.7685,2642.4,2642.3,0.15098806]
[1729356609564,0.7685,2642.4,2642.3,0.94540033]
[1729356610263,0.7685,2642.4,2642.3,0.15098806]
[1729356610761,0.83422586,2642.4,2642.3,0.15098806]
[1729356610986,1.59881145,2642.4,2642.3,0.15098806]
[1729356611489,1.59881145,2642.4,2642.2,0.79441227]
[1729356611691,1.59881145,2642.4,2642.3,0.15098178]
[1729356613890,4.20952,2642.3,2642.2,0.79441227]
[1729356614114,0.8034,2642.3,2642.2,0.94539286]
[1729356614322,0.8034,2642.3,2642.2,0.15098059]
[1729356614487,3.83363159,2642.3,2642.1,0.79441227]
[1729356614687,0.86912586,2642.2,2642.1,0.79441227]
[1729356614914,0.86912586,2642.2,2642.1,0.9453808]
[1729356615235,4.27537586,2642.2,2642.1,0.79441227]
[1729356615388,0.86912586,2642.2,2642.1,0.94535487]
[1729356616528,0.86912586,2642.2,2642.1,0.79441227]
[1729356616729,0.86912586,2642.2,2642.1,0.94534247]
[1729356616888,4.27537586,2642.2,2642.1,0.94534247]
[1729356617421,0.86912586,2642.2,2642.1,0.94534247]
[1729356620436,0.86912586,2642.2,2642.1,0.1509302]
[1729356620793,0.86912586,2642.2,2642.1,0.79420941]
[1729356620994,0.86912586,2642.2,2642.1,0.15087483]
[1729356621190,0.86912586,2642.2,2642.1,0.94507895]
[1729356621419,0.86912586,2642.2,2642.1,0.79420412]
[1729356621624,0.86912586,2642.2,2642.1,0.94507256]
[1729356621795,0.86912586,2642.2,2642.1,0.94503402]
[1729356621995,0.86912586,2642.2,2642.1,0.15086844]
[1729356622268,0.86912586,2642.2,2642.1,0.94503493]
[1729356622534,0.86912586,2642.2,2642.1,0.79416735]
[1729356622734,0.86912586,2642.2,2642.1,0.94502829]
[1729356623028,0.86912586,2642.2,2642.1,0.79416735]
[1729356624221,1.6800096,2642.2,2642.1,0.79416735]
[1729356624414,5.0862596,2642.2,2642.1,0.79416735]
[1729356624708,0.7776,2642.1,2641.9,0.79416735]
[1729356624914,0.06572586,2642.0,2641.9,0.79416735]
[1729356627259,0.65808802,2642.0,2641.9,0.79416735]
[1729356627445,1.2233842,2642.0,2641.9,0.79416735]
[1729356627763,0.65808802,2642.0,2641.9,0.79416735]
[1729356634718,0.65808802,2642.0,2641.8,0.79416735]
[1729356635278,0.65808802,2642.0,2641.9,0.79416735]
[1729356636926,0.06572586,2642.0,2641.9,0.79416735]